fUSD/lending_fUSD_20260630
["ID","MTS","AMOUNT","RATE_DAILY","PERIOD"]
[426744789,1782777068000,-481.75453484,0.00033516,2]
[426744795,1782777068000,-514.6756415,0.00033516,2]
[426744797,1782777068000,-300.0,0.00033516,2]
[426744798,1782777068000,-300.0,0.00033516,2]
[426744799,1782777068000,-300.0,0.00033516,2]
[426744801,1782777068000,-300.0,0.00033516,2]
[426744802,1782777068000,-300.0,0.00033516,2]
[426744805,1782777068000,-300.0,0.00033516,2]
[426744803,1782777068000,-300.0,0.00033516,2]
[426744804,1782777068000,-300.0,0.00033516,2]
[426744807,1782777068000,-300.0,0.00033516,2]
[426744806,1782777068000,-495.28773916,0.00033516,2]
[426744808,1782777068000,-300.0,0.00033516,2]
[426744809,1782777068000,-300.0,0.00033516,2]
[426744810,1782777068000,-300.0,0.00033516,2]
[426744761,1782777068000,-345.7536,0.00033516,2]
[426744790,1782777068000,-300.0,0.00033516,2]
[426744787,1782777068000,-300.0,0.00033516,2]
[426744800,1782777068000,-300.0,0.00033516,2]
[426744785,1782777068000,-300.0,0.00033516,2]
[426744766,1782777068000,-954.30228826,0.00033516,2]
[426744788,1782777068000,-447.70424704,0.00033516,2]
[426744767,1782777068000,-1807.30940739,0.00033516,2]
[426744764,1782777068000,-300.0,0.00033516,2]
[426744768,1782777068000,-300.0,0.00033516,2]
[426744770,1782777068000,-576.43989485,0.00033516,2]
[426744771,1782777068000,-300.0,0.00033516,2]
[426744772,1782777068000,-311.22255108,0.00033516,2]
[426744773,1782777068000,-300.0,0.00033516,2]
[426744776,1782777068000,-300.0,0.00033516,2]
[426744777,1782777068000,-300.0,0.00033516,2]
[426744769,1782777068000,-300.0,0.00033516,2]
[426744774,1782777068000,-569.01654071,0.00033516,2]
[426744775,1782777068000,-300.0,0.00033516,2]
[426744779,1782777068000,-300.0,0.00033516,2]
[426744778,1782777068000,-300.0,0.00033516,2]
[426744780,1782777068000,-513.95923093,0.00033516,2]
[426744784,1782777068000,-454.26701287,0.00033516,2]
[426744781,1782777068000,-300.0,0.00033516,2]
[426744782,1782777068000,-584.66801755,0.00033516,2]
[426744786,1782777068000,-300.0,0.00033516,2]
[426744783,1782777068000,-300.0,0.00033516,2]
[426744851,1782777069000,-454.26701287,0.00033516,2]
[426744847,1782777069000,-513.95923093,0.00033516,2]
[426744846,1782777069000,-300.0,0.00033516,2]
[426744844,1782777069000,-300.0,0.00033516,2]
[426744845,1782777069000,-300.0,0.00033516,2]
[426744842,1782777069000,-300.0,0.00033516,2]
[426744841,1782777069000,-569.01654071,0.00033516,2]
[426744839,1782777069000,-311.22255108,0.00033516,2]
[426744850,1782777069000,-300.0,0.00033516,2]
[426744852,1782777069000,-300.0,0.00033516,2]
[426744843,1782777069000,-300.0,0.00033516,2]
[426744848,1782777069000,-300.0,0.00033516,2]
[426744856,1782777069000,-446.09705538,0.00033516,2]
[426744853,1782777069000,-300.0,0.00033516,2]
[426744855,1782777069000,-300.0,0.00033516,2]
[426744860,1782777069000,-300.0,0.00033516,2]
[426744858,1782777069000,-300.0,0.00033516,2]
[426744864,1782777069000,-512.7558635,0.00033516,2]
[426744859,1782777069000,-1101.0618519,0.00033516,2]
[426744854,1782777069000,-300.0,0.00033516,2]
[426744857,1782777069000,-396.9332678,0.00033516,2]
[426744861,1782777069000,-300.0,0.00033516,2]
[426744863,1782777069000,-300.0,0.00033516,2]
[426744840,1782777069000,-300.0,0.00033516,2]
[426744849,1782777069000,-584.66801755,0.00033516,2]
[426744838,1782777069000,-300.0,0.00033516,2]
[426744816,1782777069000,-730.12015411,0.00033516,2]
[426744836,1782777069000,-300.0,0.00033516,2]
[426744862,1782777069000,-492.90676278,0.00033516,2]
[426744812,1782777069000,-300.0,0.00033516,2]
[426744811,1782777069000,-607.84242655,0.00033516,2]
[426744813,1782777069000,-300.0,0.00033516,2]
[426744815,1782777069000,-536.77715252,0.00033516,2]
[426744817,1782777069000,-300.0,0.00033516,2]
[426744814,1782777069000,-300.0,0.00033516,2]
[426744818,1782777069000,-300.0,0.00033516,2]
[426744819,1782777069000,-304.8882601,0.00033516,2]
[426744820,1782777069000,-302.16203863,0.00033516,2]
[426744823,1782777069000,-300.0,0.00033516,2]
[426744821,1782777069000,-300.0,0.00033516,2]
[426744828,1782777069000,-345.7536,0.00033516,2]
[426744830,1782777069000,-300.0,0.00033516,2]
[426744822,1782777069000,-300.0,0.00033516,2]
[426744825,1782777069000,-300.0,0.00033516,2]
[426744829,1782777069000,-300.0,0.00033516,2]
[426744824,1782777069000,-300.0,0.00033516,2]
[426744827,1782777069000,-300.0,0.00033516,2]
[426744826,1782777069000,-300.0,0.00033516,2]
[426744832,1782777069000,-300.0,0.00033516,2]
[426744831,1782777069000,-300.0,0.00033516,2]
[426744834,1782777069000,-1807.30940739,0.00033516,2]
[426744835,1782777069000,-300.0,0.00033516,2]
[426744833,1782777069000,-954.30228826,0.00033516,2]
[426744837,1782777069000,-576.43989485,0.00033516,2]
[426744865,1782777069000,-515.99380576,0.00033516,2]
[426744900,1782777069000,-576.43989485,0.00033516,2]
[426744867,1782777069000,-300.0,0.00033516,2]
[426744895,1782777069000,-300.0,0.00033516,2]
[426744897,1782777069000,-1807.30940739,0.00033516,2]
[426744899,1782777069000,-300.0,0.00033516,2]
[426744904,1782777069000,-569.01654071,0.00033516,2]
[426744902,1782777069000,-311.22255108,0.00033516,2]
[426744903,1782777069000,-419.83121096,0.00033516,2]
[426744901,1782777069000,-300.0,0.00033516,2]
[426744907,1782777069000,-492.62557705,0.00033516,2]
[426744905,1782777069000,-547.04821589,0.00033516,2]
[426744908,1782777069000,-561.88080337,0.00033516,2]
[426744912,1782777069000,-584.66801755,0.00033516,2]
[426744892,1782777069000,-300.0,0.00033516,2]
[426744911,1782777069000,-300.0,0.00033516,2]
[426744913,1782777069000,-393.25916121,0.00033516,2]
[426744917,1782777069000,-300.0,0.00033516,2]
[426744914,1782777069000,-454.26701287,0.00033516,2]
[426744920,1782777069000,-300.0,0.00033516,2]
[426744916,1782777069000,-300.0,0.00033516,2]
[426744918,1782777069000,-300.0,0.00033516,2]
[426744915,1782777069000,-300.0,0.00033516,2]
[426744910,1782777069000,-513.95923093,0.00033516,2]
[426744919,1782777069000,-446.09705538,0.00033516,2]
[426744921,1782777069000,-1101.0618519,0.00033516,2]
[426744869,1782777069000,-300.0,0.00033516,2]
[426744909,1782777069000,-300.0,0.00033516,2]
[426744896,1782777069000,-954.30228826,0.00033516,2]
[426744906,1782777069000,-300.0,0.00033516,2]
[426744893,1782777069000,-477.0677182,0.00033516,2]
[426744875,1782777069000,-607.84242655,0.00033516,2]
[426744894,1782777069000,-300.0,0.00033516,2]
[426744871,1782777069000,-300.0,0.00033516,2]
[426744866,1782777069000,-300.0,0.00033516,2]
[426744868,1782777069000,-300.0,0.00033516,2]
[426744876,1782777069000,-300.0,0.00033516,2]
[426744870,1782777069000,-495.28773916,0.00033516,2]
[426744874,1782777069000,-300.0,0.00033516,2]
[426744872,1782777069000,-300.0,0.00033516,2]
[426744878,1782777069000,-300.0,0.00033516,2]
[426744884,1782777069000,-300.0,0.00033516,2]
[426744882,1782777069000,-434.47279059,0.00033516,2]
[426744877,1782777069000,-300.0,0.00033516,2]
[426744873,1782777069000,-300.0,0.00033516,2]
[426744890,1782777069000,-399.95292687,0.00033516,2]
[426744898,1782777069000,-300.0,0.00033516,2]
[426744879,1782777069000,-536.77715252,0.00033516,2]
[426744891,1782777069000,-345.7536,0.00033516,2]
[426744889,1782777069000,-300.0,0.00033516,2]
[426744888,1782777069000,-300.0,0.00033516,2]
[426744887,1782777069000,-532.2761273,0.00033516,2]
[426744885,1782777069000,-300.0,0.00033516,2]
[426744880,1782777069000,-730.12015411,0.00033516,2]
[426744881,1782777069000,-300.0,0.00033516,2]
[426744883,1782777069000,-302.16203863,0.00033516,2]
[426744886,1782777069000,-300.0,0.00033516,2]
[426744963,1782777070000,-300.0,0.00033516,2]
[426744960,1782777070000,-300.0,0.00033516,2]
[426744967,1782777070000,-300.0,0.00033516,2]
[426744961,1782777070000,-307.40260425,0.00033516,2]
[426744959,1782777070000,-569.01654071,0.00033516,2]
[426744949,1782777070000,-300.0,0.00033516,2]
[426744952,1782777070000,-954.30228826,0.00033516,2]
[426744948,1782777070000,-345.7536,0.00033516,2]
[426744951,1782777070000,-300.0,0.00033516,2]
[426744955,1782777070000,-300.0,0.00033516,2]
[426744965,1782777070000,-454.26701287,0.00033516,2]
[426744957,1782777070000,-392.90397394,0.00033516,2]
[426744966,1782777070000,-300.0,0.00033516,2]
[426744977,1782777070000,-300.0,0.00033516,2]
[426744964,1782777070000,-584.66801755,0.00033516,2]
[426744969,1782777070000,-300.0,0.00033516,2]
[426744968,1782777070000,-300.0,0.00033516,2]
[426744970,1782777070000,-446.09705538,0.00033516,2]
[426744971,1782777070000,-300.0,0.00033516,2]
[426744974,1782777070000,-300.0,0.00033516,2]
[426744973,1782777070000,-300.0,0.00033516,2]
[426744972,1782777070000,-1101.0618519,0.00033516,2]
[426744978,1782777070000,-300.0,0.00033516,2]
[426744976,1782777070000,-320.38699067,0.00033516,2]
[426744947,1782777070000,-300.0,0.00033516,2]
[426744975,1782777070000,-300.0,0.00033516,2]
[426744962,1782777070000,-513.95923093,0.00033516,2]
[426744950,1782777070000,-300.0,0.00033516,2]
[426744925,1782777070000,-300.0,0.00033516,2]
[426744956,1782777070000,-576.43989485,0.00033516,2]
[426744979,1782777070000,-495.28773916,0.00033516,2]
[426744922,1782777070000,-300.0,0.00033516,2]
[426744924,1782777070000,-300.0,0.00033516,2]
[426744926,1782777070000,-300.0,0.00033516,2]
[426744927,1782777070000,-300.0,0.00033516,2]
[426744923,1782777070000,-300.0,0.00033516,2]
[426744929,1782777070000,-300.0,0.00033516,2]
[426744930,1782777070000,-495.28773916,0.00033516,2]
[426744928,1782777070000,-300.0,0.00033516,2]
[426744931,1782777070000,-350.7217928,0.00033516,2]
[426744932,1782777070000,-300.0,0.00033516,2]
[426744933,1782777070000,-300.0,0.00033516,2]
[426744946,1782777070000,-300.0,0.00033516,2]
[426744934,1782777070000,-300.0,0.00033516,2]
[426744941,1782777070000,-300.0,0.00033516,2]
[426744938,1782777070000,-300.0,0.00033516,2]
[426744937,1782777070000,-426.81298131,0.00033516,2]
[426744943,1782777070000,-300.0,0.00033516,2]
[426744939,1782777070000,-536.77715252,0.00033516,2]
[426744935,1782777070000,-607.84242655,0.00033516,2]
[426744936,1782777070000,-394.4921325,0.00033516,2]
[426744940,1782777070000,-730.12015411,0.00033516,2]
[426744944,1782777070000,-300.0,0.00033516,2]
[426744954,1782777070000,-300.0,0.00033516,2]
[426744953,1782777070000,-1807.30940739,0.00033516,2]
[426744945,1782777070000,-333.38232556,0.00033516,2]
[426744942,1782777070000,-302.16203863,0.00033516,2]
[426744985,1782777070000,-536.77715252,0.00033516,2]
[426744958,1782777070000,-311.22255108,0.00033516,2]
[426744986,1782777070000,-730.12015411,0.00033516,2]
[426745013,1782777070000,-446.09705538,0.00033516,2]
[426745015,1782777070000,-1101.0618519,0.00033516,2]
[426745018,1782777070000,-300.0,0.00033516,2]
[426745022,1782777070000,-495.28773916,0.00033516,2]
[426745016,1782777070000,-300.0,0.00033516,2]
[426745023,1782777070000,-451.71459756,0.00033516,2]
[426745019,1782777070000,-300.0,0.00033516,2]
[426745017,1782777070000,-300.0,0.00033516,2]
[426745020,1782777070000,-300.0,0.00033516,2]
[426745014,1782777070000,-300.0,0.00033516,2]
[426745021,1782777070000,-300.0,0.00033516,2]
[426745024,1782777070000,-300.0,0.00033516,2]
[426745005,1782777070000,-513.95923093,0.00033516,2]
[426745025,1782777070000,-300.0,0.00033516,2]
[426745038,1782777070000,-954.30228826,0.00033516,2]
[426745028,1782777070000,-730.12015411,0.00033516,2]
[426745037,1782777070000,-300.0,0.00033516,2]
[426745026,1782777070000,-607.84242655,0.00033516,2]
[426745029,1782777070000,-456.70750963,0.00033516,2]
[426745030,1782777070000,-302.16203863,0.00033516,2]
[426745033,1782777070000,-300.0,0.00033516,2]
[426745035,1782777070000,-345.7536,0.00033516,2]
[426745031,1782777070000,-300.0,0.00033516,2]
[426745034,1782777070000,-300.0,0.00033516,2]
[426745036,1782777070000,-300.0,0.00033516,2]
[426744981,1782777070000,-300.0,0.00033516,2]
[426745027,1782777070000,-536.77715252,0.00033516,2]
[426745009,1782777070000,-300.0,0.00033516,2]
[426745032,1782777070000,-300.0,0.00033516,2]
[426745004,1782777070000,-352.45719778,0.00033516,2]
[426744980,1782777070000,-300.0,0.00033516,2]
[426744982,1782777070000,-300.0,0.00033516,2]
[426744984,1782777070000,-607.84242655,0.00033516,2]
[426744987,1782777070000,-300.0,0.00033516,2]
[426744983,1782777070000,-300.0,0.00033516,2]
[426744988,1782777070000,-302.16203863,0.00033516,2]
[426744989,1782777070000,-300.0,0.00033516,2]
[426745010,1782777070000,-300.0,0.00033516,2]
[426744991,1782777070000,-300.0,0.00033516,2]
[426744990,1782777070000,-300.0,0.00033516,2]
[426744996,1782777070000,-300.0,0.00033516,2]
[426744992,1782777070000,-300.0,0.00033516,2]
[426744993,1782777070000,-345.7536,0.00033516,2]
[426744994,1782777070000,-386.01108129,0.00033516,2]
[426744997,1782777070000,-954.30228826,0.00033516,2]
[426744995,1782777070000,-300.0,0.00033516,2]
[426745007,1782777070000,-584.66801755,0.00033516,2]
[426745006,1782777070000,-300.0,0.00033516,2]
[426745002,1782777070000,-311.22255108,0.00033516,2]
[426745000,1782777070000,-300.0,0.00033516,2]
[426745003,1782777070000,-569.01654071,0.00033516,2]
[426745011,1782777070000,-300.0,0.00033516,2]
[426745001,1782777070000,-576.43989485,0.00033516,2]
[426745039,1782777070000,-1807.30940739,0.00033516,2]
[426744999,1782777070000,-419.98399344,0.00033516,2]
[426744998,1782777070000,-1807.30940739,0.00033516,2]
[426745012,1782777070000,-300.0,0.00033516,2]
[426745008,1782777070000,-454.26701287,0.00033516,2]
[426745078,1782777071000,-311.22255108,0.00033516,2]
[426745084,1782777071000,-300.0,0.00033516,2]
[426745079,1782777071000,-569.01654071,0.00033516,2]
[426745080,1782777071000,-513.95923093,0.00033516,2]
[426745077,1782777071000,-576.43989485,0.00033516,2]
[426745066,1782777071000,-302.16203863,0.00033516,2]
[426745074,1782777071000,-954.30228826,0.00033516,2]
[426745075,1782777071000,-1807.30940739,0.00033516,2]
[426745068,1782777071000,-300.0,0.00033516,2]
[426745073,1782777071000,-300.0,0.00033516,2]
[426745076,1782777071000,-300.0,0.00033516,2]
[426745081,1782777071000,-300.0,0.00033516,2]
[426745097,1782777071000,-300.0,0.00033516,2]
[426745083,1782777071000,-454.26701287,0.00033516,2]
[426745085,1782777071000,-300.0,0.00033516,2]
[426745087,1782777071000,-446.09705538,0.00033516,2]
[426745091,1782777071000,-300.0,0.00033516,2]
[426745086,1782777071000,-300.0,0.00033516,2]
[426745090,1782777071000,-300.0,0.00033516,2]
[426745089,1782777071000,-1101.0618519,0.00033516,2]
[426745096,1782777071000,-300.0,0.00033516,2]
[426745088,1782777071000,-300.0,0.00033516,2]
[426745094,1782777071000,-300.0,0.00033516,2]
[426745092,1782777071000,-475.42520894,0.00033516,2]
[426745069,1782777071000,-300.0,0.00033516,2]
[426745082,1782777071000,-584.66801755,0.00033516,2]
[426745067,1782777071000,-300.0,0.00033516,2]
[426745053,1782777071000,-1101.0618519,0.00033516,2]
[426745063,1782777071000,-607.84242655,0.00033516,2]
[426745093,1782777071000,-300.0,0.00033516,2]
[426745044,1782777071000,-513.95923093,0.00033516,2]
[426745049,1782777071000,-300.0,0.00033516,2]
[426745041,1782777071000,-576.43989485,0.00033516,2]
[426745045,1782777071000,-300.0,0.00033516,2]
[426745040,1782777071000,-300.0,0.00033516,2]
[426745046,1782777071000,-584.66801755,0.00033516,2]
[426745043,1782777071000,-569.01654071,0.00033516,2]
[426745048,1782777071000,-300.0,0.00033516,2]
[426745047,1782777071000,-454.26701287,0.00033516,2]
[426745061,1782777071000,-300.0,0.00033516,2]
[426745052,1782777071000,-300.0,0.00033516,2]
[426745071,1782777071000,-345.7536,0.00033516,2]
[426745050,1782777071000,-300.0,0.00033516,2]
[426745055,1782777071000,-599.48227125,0.00033516,2]
[426745059,1782777071000,-300.0,0.00033516,2]
[426745056,1782777071000,-300.0,0.00033516,2]
[426745057,1782777071000,-300.0,0.00033516,2]
[426745054,1782777071000,-300.0,0.00033516,2]
[426745060,1782777071000,-495.28773916,0.00033516,2]
[426745058,1782777071000,-300.0,0.00033516,2]
[426745062,1782777071000,-300.0,0.00033516,2]
[426745065,1782777071000,-730.12015411,0.00033516,2]
[426745072,1782777071000,-300.0,0.00033516,2]
[426745064,1782777071000,-536.77715252,0.00033516,2]
[426745070,1782777071000,-300.0,0.00033516,2]
[426745051,1782777071000,-446.09705538,0.00033516,2]
[426745095,1782777071000,-495.28773916,0.00033516,2]
[426745042,1782777071000,-311.22255108,0.00033516,2]
[426745109,1782777071000,-166.97,0.00033599,2]
[426745129,1782777071000,-505.18157816,0.0003363,30]
[426745130,1782777071000,-150.0,0.00033631,30]
[426745131,1782777071000,-166.97,0.00033664,2]
[426745133,1782777071000,-151.0,0.0003367,7]
[426745136,1782777071000,-151.0,0.0003367,7]
[426745135,1782777071000,-151.0,0.0003367,7]
[426745134,1782777071000,-151.0,0.0003367,7]
[426745137,1782777071000,-275.934024,0.0003367,7]
[426745142,1782777071000,-935.817238,0.0003367,7]
[426745140,1782777071000,-192.710337,0.0003367,7]
[426745138,1782777071000,-192.710337,0.0003367,7]
[426745141,1782777071000,-192.710337,0.0003367,7]
[426745143,1782777071000,-935.817238,0.0003367,7]
[426745139,1782777071000,-192.710337,0.0003367,7]
[426745145,1782777071000,-150.0,0.0003368,30]
[426745144,1782777071000,-353.47,0.00033676,3]
[426745155,1782777071000,-150.0,0.00033859,30]
[426745152,1782777071000,-150.0,0.00033824,30]
[426745149,1782777071000,-542.22,0.0003379,30]
[426745151,1782777071000,-150.0,0.00033824,30]
[426745146,1782777071000,-160.49467019,0.000337,30]
[426745153,1782777071000,-150.0,0.00033824,30]
[426745147,1782777071000,-150.0,0.00033723,30]
[426745148,1782777071000,-150.0,0.0003374,30]
[426745150,1782777071000,-150.0,0.000338,30]
[426745127,1782777071000,-505.18157816,0.0003363,30]
[426745121,1782777071000,-171.0,0.0003361,30]
[426745154,1782777071000,-5554.43514228,0.00033856,2]
[426745128,1782777071000,-2210.27188032,0.0003363,30]
[426745124,1782777071000,-232.0,0.00033619,30]
[426745098,1782777071000,-607.84242655,0.00033516,2]
[426745102,1782777071000,-152.0,0.0003354,5]
[426745101,1782777071000,-302.16203863,0.00033516,2]
[426745103,1782777071000,-169.32,0.00033554,7]
[426745104,1782777071000,-150.0,0.00033555,30]
[426745105,1782777071000,-951.96,0.00033556,120]
[426745100,1782777071000,-730.12015411,0.00033516,2]
[426745107,1782777071000,-150.0,0.00033589,30]
[426745108,1782777071000,-150.0,0.00033589,30]
[426745106,1782777071000,-150.0,0.00033561,30]
[426745110,1782777071000,-157.0,0.00033602,30]
[426745113,1782777071000,-441.0,0.00033608,7]
[426745099,1782777071000,-536.77715252,0.00033516,2]
[426745120,1782777071000,-152.0,0.0003361,30]
[426745112,1782777071000,-312.0,0.00033602,30]
[426745126,1782777071000,-2210.27188032,0.0003363,30]
[426745132,1782777071000,-211082.0,0.0003367,30]
[426745122,1782777071000,-869.0,0.00033619,30]
[426745119,1782777071000,-664.0,0.0003361,30]
[426745125,1782777071000,-150.0,0.00033621,30]
[426745117,1782777071000,-201.0,0.0003361,30]
[426745116,1782777071000,-560.0,0.0003361,30]
[426745118,1782777071000,-252.0,0.0003361,30]
[426745114,1782777071000,-201.0,0.00033608,7]
[426745115,1782777071000,-154.46935744,0.00033609,2]
[426745111,1782777071000,-275.0,0.00033602,30]
[426745123,1782777071000,-204.0,0.00033619,30]
[426745196,1782777072000,-900.0618315,0.00034215,2]
[426745186,1782777072000,-150.0,0.00034058,30]
[426745184,1782777072000,-150.0,0.00034002,2]
[426745188,1782777072000,-150.0,0.00034058,30]
[426745187,1782777072000,-150.0,0.00034058,30]
[426745189,1782777072000,-150.0,0.00034098,30]
[426745191,1782777072000,-257.01,0.000341,7]
[426745195,1782777072000,-161.45,0.00034212,120]
[426745194,1782777072000,-150.0,0.00034176,30]
[426745185,1782777072000,-150.0,0.00034039,30]
[426745198,1782777072000,-150.0,0.00034226,30]
[426745192,1782777072000,-150.0,0.00034158,30]
[426745201,1782777072000,-13080.63823615,0.00034265,2]
[426745193,1782777072000,-505.0,0.00034167,19]
[426745200,1782777072000,-747.0,0.00034257,120]
[426745183,1782777072000,-151.0,0.00034,7]
[426745190,1782777072000,-261.27,0.000341,30]
[426745199,1782777072000,-747.0,0.00034247,120]
[426745202,1782777072000,-151.0,0.00034265,7]
[426745213,1782777072000,-150.0,0.00034277,120]
[426745203,1782777072000,-151.0,0.00034265,7]
[426745204,1782777072000,-883.146791,0.00034265,7]
[426745197,1782777072000,-150.0,0.00034218,30]
[426745179,1782777072000,-216.58458871,0.00034,30]
[426745177,1782777072000,-800.0,0.00034,7]
[426745182,1782777072000,-160.0,0.00034,120]
[426745206,1782777072000,-883.146791,0.00034265,7]
[426745156,1782777072000,-573.91,0.00033887,2]
[426745157,1782777072000,-151.0,0.00033887,2]
[426745158,1782777072000,-151.78,0.00033887,2]
[426745160,1782777072000,-151.0,0.00033892,2]
[426745167,1782777072000,-150.0,0.00033979,30]
[426745166,1782777072000,-150.0,0.00033952,30]
[426745165,1782777072000,-150.0,0.00033919,30]
[426745161,1782777072000,-151.0,0.00033892,2]
[426745162,1782777072000,-151.0,0.00033892,2]
[426745159,1782777072000,-150.0,0.00033891,30]
[426745163,1782777072000,-151.0,0.00033892,2]
[426745169,1782777072000,-505.18157816,0.00033984,30]
[426745168,1782777072000,-2210.27188032,0.00033984,30]
[426745170,1782777072000,-151.0,0.00033984,7]
[426745171,1782777072000,-277.297046,0.00033984,7]
[426745174,1782777072000,-67925.8557847,0.00034,2]
[426745172,1782777072000,-2210.27188032,0.00033984,30]
[426745173,1782777072000,-505.18157816,0.00033984,30]
[426745176,1782777072000,-800.0,0.00034,7]
[426745175,1782777072000,-300.0,0.00034,2]
[426745178,1782777072000,-800.0,0.00034,7]
[426745180,1782777072000,-225.16,0.00034,30]
[426745181,1782777072000,-160.0,0.00034,120]
[426745164,1782777072000,-151.0,0.00033892,2]
[426745205,1782777072000,-883.146791,0.00034265,7]
[426745208,1782777072000,-747.0,0.00034267,120]
[426745238,1782777072000,-800.0,0.000345,7]
[426745242,1782777072000,-417.0192,0.00034513,7]
[426745246,1782777072000,-151.0,0.00034513,7]
[426745244,1782777072000,-417.0192,0.00034513,7]
[426745239,1782777072000,-800.0,0.000345,7]
[426745248,1782777072000,-151.0,0.00034513,7]
[426745247,1782777072000,-151.0,0.00034513,7]
[426745241,1782777072000,-283884.23198378,0.00034513,2]
[426745245,1782777072000,-417.0192,0.00034513,7]
[426745249,1782777072000,-155.163098,0.00034513,7]
[426745243,1782777072000,-417.0192,0.00034513,7]
[426745240,1782777072000,-800.0,0.000345,7]
[426745252,1782777072000,-185.963335,0.00034513,7]
[426745251,1782777072000,-185.963335,0.00034513,7]
[426745253,1782777072000,-185.963335,0.00034513,7]
[426745256,1782777072000,-390.280005,0.00034513,7]
[426745257,1782777072000,-4252.868314,0.00034513,7]
[426745255,1782777072000,-151.0,0.00034513,7]
[426745260,1782777072000,-390.280005,0.00034513,7]
[426745258,1782777072000,-390.280005,0.00034513,7]
[426745259,1782777072000,-4252.868314,0.00034513,7]
[426745254,1782777072000,-185.963335,0.00034513,7]
[426745207,1782777072000,-883.146791,0.00034265,7]
[426745226,1782777072000,-505.18157816,0.00034338,30]
[426745231,1782777072000,-150.0,0.00034352,120]
[426745250,1782777072000,-151.00001,0.00034513,7]
[426745236,1782777072000,-151.0,0.00034399,7]
[426745209,1782777072000,-812.0,0.0003427,120]
[426745229,1782777072000,-738.70849652,0.0003435,120]
[426745211,1782777072000,-812.0,0.0003427,120]
[426745210,1782777072000,-747.0,0.0003427,120]
[426745212,1782777072000,-150.0,0.00034272,120]
[426745214,1782777072000,-812.0,0.0003428,120]
[426745216,1782777072000,-812.0,0.0003428,120]
[426745221,1782777072000,-150.0,0.00034293,120]
[426745217,1782777072000,-812.0,0.0003429,120]
[426745222,1782777072000,-3132.0,0.000343,7]
[426745219,1782777072000,-812.0,0.0003429,120]
[426745223,1782777072000,-2000.0,0.00034312,7]
[426745218,1782777072000,-747.0,0.0003429,120]
[426745220,1782777072000,-150.0,0.00034293,120]
[426745230,1782777072000,-150.0,0.00034352,120]
[426745235,1782777072000,-151.0,0.00034399,7]
[426745234,1782777072000,-542.22,0.00034399,30]
[426745228,1782777072000,-505.18157816,0.00034338,30]
[426745233,1782777072000,-150.0,0.00034397,120]
[426745232,1782777072000,-150.0,0.00034394,120]
[426745227,1782777072000,-2210.27188032,0.00034338,30]
[426745224,1782777072000,-150.0,0.00034337,120]
[426745225,1782777072000,-2210.27188032,0.00034338,30]
[426745215,1782777072000,-747.0,0.0003428,120]
[426745237,1782777072000,-150.0,0.00034457,120]
[426745309,1782777073000,-150.0,0.00034763,120]
[426745308,1782777073000,-150.0,0.00034763,120]
[426745310,1782777073000,-563.48694465,0.00034768,2]
[426745300,1782777073000,-151.0,0.00034709,2]
[426745297,1782777073000,-3030.6396824,0.000347,12]
[426745294,1782777073000,-238.69,0.00034692,3]
[426745288,1782777073000,-150.0,0.00034636,120]
[426745295,1782777073000,-150.0,0.00034695,120]